bitfinex/quotes_BTCUSD_20251207
["timestamp","ask_amount","ask_price","bid_price","bid_amount"]
[1765130970994,0.12276902,91412.0,91410.0,0.21879419]
[1765130971195,0.02306902,91412.0,91411.0,0.001]
[1765130971766,0.02306902,91412.0,91410.0,0.21879419]
[1765130972029,0.02306902,91412.0,91410.0,0.21979419]
[1765130972202,0.02306902,91412.0,91411.0,0.02315088]
[1765130972738,0.01906902,91412.0,91411.0,0.02315088]
[1765130972937,0.02006902,91412.0,91411.0,0.02315088]
[1765130973296,0.00105615,91412.0,91411.0,0.08511088]
[1765130973501,0.00105615,91412.0,91411.0,0.52185103]
[1765130973701,0.00105615,91412.0,91411.0,0.50941088]
[1765130975265,0.00105615,91412.0,91411.0,0.53161486]
[1765130976337,0.00105615,91412.0,91411.0,0.50941088]
[1765130977361,0.00105615,91412.0,91411.0,0.54776419]
[1765130977517,0.00105615,91412.0,91411.0,0.50941088]
[1765130977724,0.00105615,91412.0,91411.0,0.54776419]
[1765130978123,0.00105615,91412.0,91411.0,0.56996817]
[1765130978325,0.00105615,91412.0,91411.0,1.62159786]
[1765130978536,0.0002,91440.0,91411.0,1.62159786]
[1765130978537,0.0002,91440.0,91428.0,0.01093756]
[1765130978741,0.00062843,91431.0,91430.0,0.47292146]
[1765130978959,0.00062843,91431.0,91430.0,0.46714486]
[1765130979202,0.00062843,91431.0,91430.0,0.56644486]
[1765130979936,0.00062843,91431.0,91430.0,0.12194088]
[1765130980087,0.00062843,91431.0,91430.0,0.05998088]
[1765130980293,0.00062843,91431.0,91430.0,0.06398088]
[1765130980511,0.00062843,91431.0,91430.0,0.05998088]
[1765130980694,0.00062843,91431.0,91430.0,0.12694088]
[1765130981025,0.00062843,91431.0,91430.0,0.12994088]
[1765130981227,0.00062843,91431.0,91430.0,0.06298088]
[1765130982429,0.00062843,91431.0,91430.0,0.05998088]
[1765130982846,0.06425843,91431.0,91430.0,0.02515088]
[1765130983052,0.06425843,91431.0,91430.0,0.02615088]
[1765130983203,0.0658713,91431.0,91430.0,0.02615088]
[1765130983626,0.1060213,91431.0,91430.0,0.02615088]
[1765130984039,0.0658713,91431.0,91430.0,0.02615088]
[1765130984625,0.1060213,91431.0,91430.0,0.02615088]
[1765130984826,0.12305253,91431.0,91430.0,0.003]
[1765130985087,0.18853484,91431.0,91430.0,0.003]
[1765130985225,0.14525651,91431.0,91430.0,0.003]
[1765130985669,0.14525651,91431.0,91430.0,0.001]
[1765130985835,0.02220398,91426.0,91424.0,0.01093804]
[1765130986037,0.03314166,91427.0,91424.0,0.01093804]
[1765130986238,0.0489,91425.0,91424.0,0.22969811]
[1765130986463,0.05051287,91425.0,91423.0,0.01093816]
[1765130986631,0.0073,91424.0,91423.0,0.01093816]
[1765130986832,0.0073,91424.0,91422.0,0.01093828]
[1765130987052,0.01835,91423.0,91422.0,0.01093828]
[1765130987649,0.12399816,91423.0,91420.0,0.0009578]
[1765130987811,0.01093876,91418.0,91414.0,0.01093924]
[1765130988054,0.21877768,91417.0,91415.0,0.02314597]
[1765130988254,0.22972662,91413.0,91410.0,0.0009578]
[1765130988457,0.0113196,91411.0,91406.0,0.0109402]
[1765130988673,0.21879683,91409.0,91406.0,0.02315875]
[1765130988904,0.01094055,91403.0,91400.0,0.0009578]
[1765130989100,0.01094055,91403.0,91401.0,0.02316441]
[1765130989250,0.22975176,91403.0,91402.0,0.02316441]
[1765130989453,0.04804,91402.0,91399.0,0.01094103]
[1765130989653,0.04804,91402.0,91400.0,0.01094091]
[1765130989856,0.04804,91407.0,91402.0,0.21881359]
[1765130990095,0.05898008,91407.0,91403.0,0.01094055]
[1765130990437,0.04804,91407.0,91404.0,0.01094044]
[1765130990655,0.05898008,91407.0,91403.0,0.01094055]
[1765130990866,0.06363,91404.0,91403.0,0.01094055]
[1765130992801,0.06363,91404.0,91402.0,0.00011792]
[1765130993050,0.09508,91403.0,91402.0,0.00011792]
[1765130993264,0.11728398,91403.0,91402.0,0.00011792]
[1765130993670,0.33609517,91403.0,91402.0,0.00011792]
[1765130994032,0.33609517,91403.0,91402.0,0.00111792]
[1765130994418,0.11828398,91403.0,91402.0,0.00111792]
[1765130995319,0.33709517,91403.0,91402.0,0.00111792]
[1765130995775,0.33709517,91403.0,91402.0,0.00011792]
[1765130996271,0.33709517,91403.0,91402.0,0.00111792]
[1765130997251,0.31489119,91403.0,91402.0,0.00111792]
[1765130997452,0.33709517,91403.0,91402.0,0.00111792]
[1765130999305,0.00137,91403.0,91402.0,0.00111792]
[1765130999785,0.001,91403.0,91402.0,0.36705151]
[1765131000142,0.001,91403.0,91402.0,0.27819151]
[1765131000351,0.15169,91403.0,91402.0,0.00111792]
[1765131001130,0.10358,91403.0,91402.0,0.00111792]
[1765131001382,0.04519,91403.0,91402.0,0.00111792]
[1765131001791,0.001,91403.0,91402.0,0.14823792]
[1765131001992,0.001,91403.0,91402.0,0.4934419]
[1765131002213,0.001,91403.0,91402.0,0.51658679]
[1765131003337,0.001,91403.0,91402.0,5.49438281]
[1765131003839,0.04397,91415.0,91414.0,0.21878486]
[1765131004019,0.08825,91414.0,91409.0,0.01093984]
[1765131004200,0.08825,91414.0,91411.0,0.22973008]
[1765131004403,0.10565,91414.0,91411.0,0.22973008]
[1765131004620,0.10565,91414.0,91413.0,0.21878726]
[1765131004992,0.10565,91414.0,91409.0,0.01093984]
[1765131004993,0.17204398,91414.0,91409.0,0.01093984]
[1765131005193,0.02833924,91414.0,91410.0,0.01093972]
[1765131005441,0.02833924,91414.0,91411.0,0.0109396]
[1765131005618,0.0214,91414.0,91412.0,0.21878965]
[1765131005943,0.0174,91414.0,91412.0,0.21878965]
[1765131006164,0.04419,91413.0,91412.0,0.21878965]
[1765131006712,0.04419,91413.0,91411.0,0.0109396]
[1765131006914,0.00044,91412.0,91411.0,0.0109396]
[1765131008731,0.01137948,91412.0,91409.0,0.01093984]
[1765131008922,0.05839,91410.0,91404.0,0.01094044]
[1765131009127,0.05824,91405.0,91402.0,5.01105859]
[1765131009290,0.21879683,91409.0,91404.0,0.01094044]
[1765131009291,0.01094008,91407.0,91404.0,0.01094044]
[1765131009469,0.08825,91410.0,91406.0,0.0109402]
[1765131009679,0.0174,91414.0,91411.0,0.22973151]
[1765131010036,0.0174,91414.0,91412.0,0.21878726]
[1765131010037,0.01703123,91413.0,91412.0,0.21878726]
[1765131010244,0.08825,91428.0,91422.0,0.22970278]
[1765131010444,0.0174,91424.0,91423.0,0.21876333]
[1765131011415,0.0174,91424.0,91423.0,0.27702333]
[1765131011611,0.0174,91424.0,91423.0,0.21876333]
[1765131011841,0.07781,91424.0,91423.0,0.21876333]
[1765131012016,0.13353,91424.0,91419.0,0.01093864]
[1765131012219,0.01093864,91419.0,91415.0,0.01093912]
[1765131012437,0.10438,91416.0,91414.0,0.01093924]
[1765131012634,0.00054,91415.0,91414.0,0.01093924]
[1765131012873,0.08882,91415.0,91414.0,0.2297241]
[1765131013079,0.08882,91415.0,91409.0,0.21879588]
[1765131013382,0.01094032,91405.0,91402.0,5.00011792]
[1765131013618,0.05395,91404.0,91403.0,0.02316881]
[1765131013855,0.05837,91403.0,91402.0,5.00011792]
[1765131014085,0.0174,91407.0,91403.0,0.01094055]
[1765131014297,0.0174,91407.0,91406.0,0.21880401]
[1765131015654,0.0174,91407.0,91406.0,0.21980401]
[1765131016953,0.37204847,91407.0,91406.0,0.001]
[1765131017175,0.15324685,91407.0,91406.0,0.001]
[1765131017373,0.15324685,91407.0,91406.0,0.002]
[1765131017670,0.13104287,91407.0,91406.0,0.002]
[1765131017855,0.13104287,91407.0,91404.0,0.01094044]
[1765131018056,0.08828,91406.0,91405.0,0.21880641]
[1765131018257,0.11267,91406.0,91405.0,0.21880641]
[1765131018862,0.02001287,91407.0,91405.0,0.21880641]
[1765131019065,0.01901287,91407.0,91405.0,0.21880641]
[1765131019299,0.0174,91407.0,91406.0,0.02317925]
[1765131019515,0.08496117,91431.0,91430.0,0.79850333]
[1765131019680,0.10236117,91431.0,91430.0,0.79850333]
[1765131019880,0.32110687,91431.0,91430.0,0.79850333]
[1765131020313,0.2363799,91431.0,91430.0,0.79850333]
[1765131020532,0.23799277,91431.0,91430.0,0.79850333]
[1765131020678,0.26059098,91431.0,91430.0,0.79850333]
[1765131021269,0.26259098,91431.0,91430.0,0.79850333]
[1765131021472,0.26959098,91431.0,91430.0,0.79850333]
[1765131021692,0.26259098,91431.0,91430.0,0.79850333]
[1765131021888,0.26059098,91431.0,91430.0,0.79850333]
[1765131022096,0.00662843,91431.0,91430.0,1.12142991]
[1765131022630,0.00662843,91431.0,91430.0,1.01724991]
[1765131022828,0.06503843,91431.0,91430.0,0.79850333]
[1765131023580,0.06003843,91431.0,91430.0,0.79850333]
[1765131023829,0.05903843,91431.0,91430.0,0.79850333]
[1765131024032,0.06503843,91431.0,91430.0,0.79850333]
[1765131024434,0.06003843,91431.0,91430.0,0.79850333]
[1765131024637,0.06203843,91431.0,91430.0,0.79850333]
[1765131024803,0.06303843,91431.0,91430.0,0.79850333]
[1765131025718,0.00462843,91431.0,91430.0,0.79850333]
[1765131026285,0.06303843,91431.0,91430.0,0.79850333]
[1765131026539,0.06303843,91431.0,91430.0,1.01724991]
[1765131027315,0.00462843,91431.0,91430.0,1.01724991]
[1765131027515,0.00462843,91431.0,91430.0,1.06302991]
[1765131028120,0.00462843,91431.0,91430.0,1.01724991]
[1765131028368,0.06303843,91431.0,91430.0,1.01724991]
[1765131028671,0.06303843,91431.0,91430.0,0.79850333]
[1765131028974,0.08685528,91431.0,91430.0,0.79850333]
[1765131029531,0.0646513,91431.0,91430.0,0.79850333]
[1765131029925,0.0062413,91431.0,91430.0,0.79850333]
[1765131030125,0.0646513,91431.0,91430.0,0.79850333]
[1765131030531,0.0062413,91431.0,91430.0,0.79850333]
[1765131032480,0.0646513,91431.0,91430.0,0.79850333]
[1765131033257,0.0062413,91431.0,91430.0,0.79850333]
[1765131036834,0.0646513,91431.0,91430.0,1.01724991]
[1765131037286,0.0646513,91431.0,91430.0,0.79850333]
[1765131039163,0.0646513,91431.0,91430.0,0.79771932]
[1765131040740,0.08685528,91431.0,91430.0,0.79771932]
[1765131042875,0.10987528,91431.0,91430.0,0.79771932]
[1765131043290,0.151073,91431.0,91430.0,0.79771932]
[1765131043492,0.21359599,91431.0,91430.0,0.79771932]
[1765131044490,0.21059599,91431.0,91430.0,0.79771932]
[1765131044827,0.21659599,91431.0,91430.0,0.79771932]
[1765131045148,0.21859599,91431.0,91430.0,0.79771932]
[1765131046238,0.19639201,91431.0,91430.0,0.79771932]
[1765131046394,0.54159599,91431.0,91430.0,0.79771932]
[1765131047803,0.51939201,91431.0,91430.0,0.79771932]
[1765131048087,0.50039827,91431.0,91430.0,0.79771932]
[1765131055033,0.50039827,91431.0,91430.0,0.79666932]
[1765131059423,0.50039827,91431.0,91430.0,0.28782996]
[1765131059627,0.50039827,91431.0,91402.0,5.0]
[1765131059628,0.21881119,91403.0,91402.0,5.0]
[1765131059752,0.33796939,91403.0,91402.0,5.0]
[1765131059956,0.39731939,91403.0,91402.0,5.0]
[1765131060821,0.39731939,91403.0,91402.0,5.00011792]
[1765131061032,0.72331939,91403.0,91402.0,5.00011792]
[1765131061235,0.83402445,91403.0,91402.0,5.00011792]
[1765131061782,0.83302445,91403.0,91402.0,5.00011792]
[1765131062115,0.40031939,91403.0,91402.0,5.00011792]
[1765131062431,0.3347964,91403.0,91402.0,5.00011792]
[1765131062630,0.3357964,91403.0,91402.0,5.00011792]
[1765131063004,0.39831939,91403.0,91402.0,5.00011792]
[1765131066737,0.39731939,91403.0,91402.0,5.00011792]
[1765131067180,0.39731939,91403.0,91402.0,5.00211792]
[1765131067386,0.39731939,91403.0,91402.0,5.00311792]
[1765131068500,0.39731939,91403.0,91402.0,5.00111792]
[1765131068793,0.40604939,91403.0,91402.0,5.00411792]
[1765131068999,0.40604939,91403.0,91402.0,5.00311792]
[1765131069557,0.40604939,91403.0,91402.0,5.00011792]
[1765131069777,0.40604939,91403.0,91402.0,5.00211792]
[1765131069943,0.40604939,91403.0,91402.0,0.00211792]
[1765131071015,0.40704939,91403.0,91402.0,0.00211792]
[1765131071458,0.51675445,91403.0,91402.0,0.00011792]
[1765131071875,0.51675445,91403.0,91402.0,0.00211792]
[1765131072057,0.51675445,91403.0,91402.0,0.00011792]
[1765131072268,0.51575445,91403.0,91402.0,0.00011792]
[1765131072474,0.51575445,91403.0,91402.0,0.00311792]
[1765131074360,0.51575445,91403.0,91402.0,5.00311792]
[1765131076075,0.51575445,91403.0,91402.0,5.00011792]
[1765131076486,0.51575445,91403.0,91402.0,5.00211792]
[1765131077175,0.51575445,91403.0,91402.0,5.00098792]
[1765131078473,0.40604939,91403.0,91402.0,5.00098792]
[1765131079648,0.72904939,91403.0,91402.0,5.00098792]
[1765131080649,0.72904939,91403.0,91402.0,4.99898792]
[1765131081015,0.76591877,91403.0,91402.0,4.99898792]
[1765131081638,0.73304939,91403.0,91402.0,4.99898792]
[1765131082037,0.82577442,91403.0,91402.0,4.99898792]
[1765131082367,0.82177442,91403.0,91402.0,4.99898792]
[1765131082772,0.82277442,91403.0,91402.0,4.99898792]
[1765131090335,2.05277041,91403.0,91402.0,4.01419825]
[1765131090543,1.30259441,91403.0,91402.0,4.01419825]
[1765131090751,1.32479839,91403.0,91402.0,4.01419825]
[1765131090989,1.32479839,91403.0,91402.0,3.51768352]
[1765131091393,1.32379839,91403.0,91402.0,2.83226568]
[1765131091598,1.56769839,91403.0,91402.0,2.53578948]
[1765131091801,1.57369839,91403.0,91402.0,1.84228671]
[1765131092116,1.57669839,91403.0,91402.0,1.84228671]
[1765131093052,1.55929839,91403.0,91402.0,1.84228671]
[1765131093256,1.11614039,91403.0,91402.0,1.84228671]
[1765131095058,1.10168639,91403.0,91402.0,1.84228671]
[1765131096284,1.09868639,91403.0,91402.0,1.84228671]
[1765131096724,1.10168639,91403.0,91402.0,1.84228671]
[1765131097139,1.09568639,91403.0,91402.0,1.84228671]
[1765131097434,1.10068639,91403.0,91402.0,1.84228671]
[1765131100256,0.98194939,91403.0,91402.0,1.84228671]
[1765131100461,1.13546739,91403.0,91402.0,1.84228671]
[1765131100688,1.13745339,91403.0,91402.0,1.84228671]
[1765131100841,0.98194939,91403.0,91402.0,1.84228671]
[1765131101227,1.09169339,91403.0,91402.0,1.84228671]
[1765131101839,1.12456486,91403.0,91402.0,1.84228671]
[1765131105542,1.01482086,91403.0,91402.0,1.84228671]
[1765131106777,0.95229787,91403.0,91402.0,1.84228671]
[1765131107005,0.32576517,91403.0,91402.0,1.84228671]
[1765131107209,0.11584398,91403.0,91402.0,1.84228671]
[1765131107412,0.11284398,91403.0,91402.0,1.84228671]
[1765131107618,0.10784398,91403.0,91402.0,1.84228671]
[1765131108107,0.10884398,91403.0,91402.0,1.84228671]
[1765131108337,0.10784398,91403.0,91402.0,1.84228671]
[1765131108703,0.10884398,91403.0,91402.0,1.84228671]
[1765131109326,0.10784398,91403.0,91402.0,1.84228671]
[1765131109622,0.10884398,91403.0,91402.0,1.84228671]
[1765131110250,0.10784398,91403.0,91402.0,1.84228671]
[1765131110572,0.12487521,91403.0,91402.0,1.84228671]
[1765131110699,0.12487521,91403.0,91402.0,1.84528671]
[1765131110899,0.12487521,91403.0,91402.0,1.84228671]
[1765131111349,0.03443123,91403.0,91402.0,1.84728671]
[1765131111552,0.03443123,91403.0,91402.0,1.84228671]
[1765131111700,0.05277123,91403.0,91402.0,1.84228671]
[1765131111899,0.07497521,91403.0,91402.0,1.84528671]
[1765131112097,0.11566521,91403.0,91402.0,1.84228671]
[1765131113310,0.09346123,91403.0,91402.0,1.84228671]
[1765131113548,0.10267123,91403.0,91402.0,1.84228671]
[1765131113766,0.12487521,91403.0,91402.0,1.84528671]
[1765131114242,0.10267123,91403.0,91402.0,1.84528671]
[1765131115566,0.12487521,91403.0,91402.0,1.84528671]
[1765131116642,0.12487521,91403.0,91402.0,1.84228671]
[1765131116985,0.12487521,91403.0,91402.0,1.84528671]
[1765131117426,0.3436864,91403.0,91402.0,1.84528671]
[1765131119562,0.3436864,91403.0,91402.0,1.84228671]
[1765131119981,0.3436864,91403.0,91402.0,1.84428671]
[1765131120940,0.40620939,91403.0,91402.0,1.84428671]
[1765131121557,0.3436864,91403.0,91402.0,1.84428671]
[1765131127421,0.22973981,91408.0,91402.0,1.84428671]
[1765131127422,0.06325398,91411.0,91410.0,0.01093972]
[1765131127616,0.08873521,91403.0,91402.0,1.84428671]
[1765131128145,0.08873521,91403.0,91402.0,1.84228671]
[1765131128780,0.03923521,91403.0,91402.0,1.84228671]
[1765131128991,0.05845,91411.0,91402.0,1.84228671]
[1765131128992,0.05845,91411.0,91410.0,0.21879444]
[1765131129378,0.05894,91411.0,91408.0,0.22973725]
[1765131129577,0.05894,91411.0,91405.0,0.22974673]
[1765131129578,0.02220398,91406.0,91405.0,0.22974673]
[1765131129930,0.02220398,91403.0,91402.0,1.84228671]
[1765131130147,0.00049,91403.0,91402.0,1.84328671]
[1765131130353,0.08873521,91403.0,91402.0,1.84328671]
[1765131130792,0.08873521,91403.0,91402.0,1.84228671]
[1765131131242,0.1512582,91403.0,91402.0,1.84228671]
[1765131131441,0.1512582,91403.0,91402.0,1.84428671]
[1765131132490,0.1512582,91403.0,91402.0,1.84228671]
[1765131132906,0.1512582,91403.0,91402.0,1.84428671]
[1765131133116,0.4742582,91403.0,91402.0,1.84428671]
[1765131134085,0.4742582,91403.0,91402.0,1.84228671]
[1765131134573,0.4742582,91403.0,91402.0,1.84328671]
[1765131134796,1.0528622,91403.0,91402.0,1.84328671]
[1765131135917,1.0528622,91403.0,91402.0,1.33579777]
[1765131136168,1.0608622,91403.0,91402.0,1.33579777]
[1765131136343,1.0568622,91403.0,91402.0,1.33579777]
[1765131136754,1.0658622,91403.0,91402.0,1.33579777]
[1765131137000,1.0528622,91403.0,91402.0,1.33579777]
[1765131137203,1.0578622,91403.0,91402.0,1.33579777]
[1765131137387,1.0688622,91403.0,91402.0,1.33579777]
[1765131140083,1.3137622,91403.0,91402.0,1.33579777]
[1765131142519,1.3137622,91403.0,91402.0,0.80029995]
[1765131142701,1.3137622,91403.0,91402.0,0.73509743]
[1765131143038,1.3137622,91403.0,91402.0,0.23983495]
[1765131143190,1.3137622,91403.0,91402.0,0.12735574]
[1765131143888,1.0373792,91403.0,91402.0,0.12735574]
[1765131144573,1.0547792,91403.0,91402.0,0.12735574]
[1765131144777,0.97485621,91403.0,91402.0,0.12735574]
[1765131144950,0.36703521,91403.0,91402.0,0.12735574]
[1765131145351,0.68503521,91403.0,91402.0,0.12735574]
[1765131145553,0.7365582,91403.0,91402.0,0.12735574]
[1765131145772,0.67803521,91403.0,91402.0,0.12735574]
[1765131145986,0.68803521,91403.0,91402.0,0.12735574]
[1765131146211,0.67403521,91403.0,91402.0,0.12735574]
[1765131146444,0.7365582,91403.0,91402.0,0.12735574]
[1765131146654,0.7435582,91403.0,91402.0,0.12735574]
[1765131147710,1.2872912,91403.0,91402.0,0.12735574]
[1765131147917,1.1868272,91403.0,91402.0,0.12735574]
[1765131149191,1.1010102,91403.0,91402.0,0.12735574]
[1765131150219,0.7435582,91403.0,91402.0,0.12735574]
[1765131154279,0.4986582,91403.0,91402.0,0.12735574]
[1765131158310,0.6114452,91403.0,91402.0,0.12735574]
[1765131158727,0.4986582,91403.0,91402.0,0.12735574]
[1765131159255,0.6376682,91403.0,91402.0,0.12735574]
[1765131163127,0.67700933,91403.0,91402.0,0.12735574]
[1765131163255,0.6376682,91403.0,91402.0,0.12735574]
[1765131163457,0.6376682,91403.0,91402.0,1e-08]
[1765131164307,0.6326682,91403.0,91402.0,1e-08]
[1765131164645,0.6416682,91403.0,91402.0,1e-08]
[1765131164850,0.6466682,91403.0,91402.0,1e-08]
[1765131166201,0.70528888,91403.0,91402.0,1e-08]
[1765131167145,0.6466682,91403.0,91402.0,1e-08]
[1765131169093,0.8915682,91403.0,91402.0,1e-08]
[1765131171410,0.8741682,91403.0,91402.0,1e-08]
[1765131171714,0.8915682,91403.0,91402.0,1e-08]
[1765131176102,0.9244464,91403.0,91402.0,1e-08]
[1765131177503,0.98334401,91403.0,91402.0,1e-08]
[1765131177693,0.9244464,91403.0,91402.0,1e-08]
[1765131178084,0.90224242,91403.0,91402.0,1e-08]
[1765131178325,0.9244464,91403.0,91402.0,1e-08]
[1765131184712,0.06252299,91375.0,91373.0,0.52840909]
[1765131184898,0.45537697,91374.0,91373.0,0.52840909]
[1765131185432,0.57930368,91374.0,91373.0,0.52840909]
[1765131185668,0.5686282,91374.0,91350.0,0.0009578]
[1765131185798,0.5686282,91374.0,91340.0,0.0004]
[1765131185799,0.60448271,91341.0,91340.0,0.0004]
[1765131185999,0.69170669,91341.0,91340.0,0.0004]
[1765131186188,0.26032453,91343.0,91340.0,0.0004]
[1765131186189,0.03042,91343.0,91340.0,0.0004]
[1765131186406,0.0174,91341.0,91340.0,0.0004]
[1765131186604,0.0174,91341.0,91340.0,0.00614189]
[1765131186801,0.03443123,91341.0,91340.0,0.0004]
[1765131188215,0.03443123,91341.0,91340.0,0.0104]
[1765131189058,0.30289095,91341.0,91340.0,0.0114]
[1765131189261,0.03443123,91341.0,91340.0,0.0114]
[1765131192061,0.03923521,91341.0,91340.0,0.0114]
[1765131192260,0.01703123,91341.0,91340.0,0.0114]
[1765131192462,0.03443123,91341.0,91340.0,0.0114]
[1765131193251,0.05712521,91341.0,91340.0,0.0114]
[1765131194340,0.10613521,91341.0,91340.0,0.0114]
[1765131194542,0.05712521,91341.0,91340.0,0.0114]
[1765131194671,0.1686582,91341.0,91340.0,0.0114]
[1765131194857,0.49327107,91341.0,91340.0,0.0114]
[1765131195280,0.50467107,91341.0,91340.0,0.0114]
[1765131195684,0.50467107,91341.0,91340.0,0.0104]
[1765131195914,0.50467107,91341.0,91340.0,0.0004]
[1765131196227,0.50467107,91341.0,91340.0,0.0124]
[1765131196228,1.13623107,91341.0,91340.0,0.0124]
[1765131196972,1.13623107,91341.0,91340.0,0.0134]
[1765131197368,1.13623107,91341.0,91340.0,0.0004]
[1765131197369,1.13523107,91341.0,91340.0,0.0004]
[1765131197852,1.13723107,91341.0,91340.0,0.0074]
[1765131199830,1.13723107,91341.0,91330.0,0.0004]
[1765131199831,0.62671066,91331.0,91330.0,0.0004]
[1765131200031,0.62720066,91331.0,91330.0,0.0004]
[1765131200215,0.67621066,91331.0,91330.0,0.0004]
[1765131201272,0.67921066,91331.0,91330.0,0.0004]
[1765131201484,0.67921066,91331.0,91330.0,0.0034]
[1765131203196,1.35838166,91331.0,91330.0,0.0034]
[1765131203679,1.33617768,91331.0,91330.0,1e-08]
[1765131203881,1.35838166,91331.0,91330.0,1e-08]
[1765131206024,1.37578166,91331.0,91330.0,1e-08]
[1765131207143,0.99107766,91331.0,91330.0,1e-08]
[1765131207541,0.97967666,91331.0,91330.0,1e-08]
[1765131207743,0.94475066,91331.0,91330.0,1e-08]
[1765131209742,0.69661066,91331.0,91330.0,1e-08]
[1765131210125,0.83751766,91331.0,91330.0,1e-08]
[1765131210327,0.82498766,91331.0,91330.0,1e-08]
[1765131212038,0.80278368,91331.0,91330.0,1e-08]
[1765131212268,0.82498766,91331.0,91330.0,1e-08]
[1765131213433,0.29368767,91331.0,91330.0,1e-08]
[1765131213588,0.31108767,91331.0,91330.0,1e-08]
[1765131213784,0.63408767,91331.0,91330.0,1e-08]
[1765131214318,0.69661066,91331.0,91330.0,1e-08]
[1765131214490,0.69861066,91331.0,91330.0,0.00100001]
[1765131214901,0.69561066,91331.0,91330.0,0.00100001]
[1765131215127,0.58407767,91331.0,91330.0,0.00100001]
[1765131215431,0.04309398,91331.0,91330.0,0.00100001]
[1765131215819,0.10561697,91331.0,91330.0,0.00100001]
[1765131216154,0.26107767,91331.0,91330.0,0.00100001]
[1765131216356,0.31008767,91331.0,91330.0,0.00100001]
[1765131216588,0.37261066,91331.0,91330.0,0.00100001]
[1765131216767,0.32360066,91331.0,91330.0,0.00100001]
[1765131216934,0.32160066,91331.0,91330.0,1e-08]
[1765131217321,0.37061066,91331.0,91330.0,1e-08]
[1765131218123,0.32160066,91331.0,91330.0,1e-08]
[1765131219407,0.37061066,91331.0,91330.0,1e-08]
[1765131226641,0.35321066,91331.0,91330.0,1e-08]
[1765131226842,0.37061066,91331.0,91330.0,1e-08]
[1765131227544,0.32160066,91331.0,91330.0,1e-08]
[1765131229407,0.69361066,91331.0,91330.0,0.00200001]
[1765131229807,0.69361066,91331.0,91330.0,0.00500001]
[1765131230051,0.67140668,91331.0,91330.0,0.00500001]
[1765131230262,0.42561697,91331.0,91330.0,0.00200001]
[1765131230456,0.64560066,91331.0,91330.0,0.00200001]
[1765131230622,0.64560066,91331.0,91330.0,1e-08]
[1765131231244,0.64460066,91331.0,91330.0,1e-08]
[1765131231772,0.64460066,91331.0,91330.0,0.00200001]
[1765131232472,0.69361066,91331.0,91330.0,0.00200001]
[1765131232885,0.64460066,91331.0,91330.0,0.00200001]
[1765131233077,0.69361066,91331.0,91330.0,0.00200001]
[1765131233294,0.69361066,91331.0,91330.0,0.00500001]
[1765131233295,0.69325841,91331.0,91330.0,0.00500001]
[1765131233460,0.64424841,91331.0,91330.0,1e-08]
[1765131233847,0.64424841,91331.0,91330.0,0.00400001]
[1765131234049,0.69325841,91331.0,91330.0,0.00400001]
[1765131234500,0.64424841,91331.0,91330.0,0.00400001]
[1765131235496,0.69325841,91331.0,91330.0,0.00400001]
[1765131236131,0.69245841,91331.0,91330.0,0.00400001]
[1765131240108,0.69245841,91331.0,91330.0,1e-08]
[1765131240439,0.69259841,91331.0,91330.0,1e-08]
[1765131240626,0.45141074,91331.0,91330.0,1e-08]
[1765131241345,0.00161287,91341.0,91338.0,0.22991525]
[1765131241548,0.01703123,91345.0,91342.0,0.22990283]
[1765131241747,0.01703123,91345.0,91344.0,0.04709]
[1765131242037,0.03443123,91345.0,91344.0,0.1081]
[1765131242235,0.03443123,91345.0,91344.0,0.20493]
[1765131242439,0.03443123,91345.0,91344.0,0.42388253]
[1765131242802,0.03443123,91345.0,91344.0,0.32705253]
[1765131243215,0.03543123,91345.0,91344.0,0.32705253]
[1765131243411,0.30369148,91339.0,91338.0,0.002]
[1765131243736,0.62669148,91339.0,91338.0,0.002]
[1765131244027,0.67633148,91339.0,91338.0,0.002]
[1765131244403,0.67633148,91339.0,91330.0,0.00095781]
[1765131244404,0.30371066,91331.0,91330.0,0.00095781]
[1765131244627,0.41566066,91331.0,91330.0,0.00095781]
[1765131245147,0.19667697,91331.0,91330.0,0.00095781]
[1765131245350,0.14703697,91331.0,91330.0,1e-08]
[1765131245509,0.0174,91331.0,91330.0,0.06101001]
[1765131245707,0.03443123,91331.0,91330.0,0.24403197]
[1765131245936,0.0174,91331.0,91330.0,0.24403197]
[1765131246546,0.0184,91331.0,91330.0,0.24903197]
[1765131246742,0.0174,91331.0,91330.0,0.24403197]
[1765131247171,0.0184,91331.0,91330.0,0.25203197]
[1765131247554,0.0184,91331.0,91330.0,0.06901001]
[1765131250202,0.0184,91331.0,91330.0,0.16584001]
[1765131253434,0.0184,91331.0,91330.0,0.18015341]
[1765131254492,0.001,91331.0,91330.0,0.18015341]
[1765131260248,0.001,91331.0,91330.0,0.17815341]
[1765131260426,0.001,91331.0,91330.0,0.27115184]
[1765131260622,0.001,91331.0,91330.0,0.25703631]
[1765131260792,0.001,91331.0,91330.0,0.58003631]
[1765131260996,0.001,91331.0,91330.0,0.60224029]
[1765131261203,0.01703123,91374.0,91371.0,0.22982994]
[1765131261399,0.01703123,91374.0,91373.0,0.33362303]
[1765131261655,0.03443123,91374.0,91373.0,0.33362303]
[1765131262211,0.03443123,91374.0,91373.0,0.04973]
[1765131262555,0.03743123,91374.0,91373.0,0.21900098]
[1765131262756,0.03443123,91374.0,91373.0,0.00011795]
[1765131262913,0.03443123,91374.0,91373.0,0.21900098]
[1765131263116,0.03643123,91374.0,91373.0,0.21900098]
[1765131264792,0.03643123,91374.0,91373.0,0.28401098]
[1765131265147,0.03643123,91374.0,91373.0,0.15053646]
[1765131265794,0.03643123,91374.0,91373.0,0.36941949]
[1765131266815,0.03643123,91374.0,91373.0,0.00011795]
[1765131267019,0.05863521,91374.0,91373.0,0.00011795]
[1765131270485,0.27751585,91374.0,91373.0,0.00011795]
[1765131270685,0.27800585,91374.0,91373.0,0.00011795]
[1765131271900,0.27751585,91374.0,91373.0,0.00011795]
[1765131272372,0.05863521,91374.0,91373.0,0.00011795]
[1765131272688,0.32701585,91374.0,91373.0,0.00011795]
[1765131272887,0.27800585,91374.0,91373.0,0.00011795]
[1765131274482,0.05912521,91374.0,91373.0,0.00011795]
[1765131274912,0.05863521,91374.0,91373.0,0.00011795]
[1765131278053,0.05859521,91374.0,91373.0,0.00011795]
[1765131278391,0.10970808,91374.0,91373.0,0.00011795]
[1765131278995,0.17223107,91374.0,91373.0,0.00011795]
[1765131284052,0.12322107,91374.0,91373.0,0.00011795]
[1765131284249,0.10586107,91374.0,91373.0,0.00011795]
[1765131284421,0.12322107,91374.0,91373.0,0.00011795]
[1765131284598,0.12122107,91374.0,91373.0,0.00011795]
[1765131285023,0.17623107,91374.0,91373.0,0.00011795]
[1765131285245,0.17023107,91374.0,91373.0,0.00011795]
[1765131285705,0.17123107,91374.0,91373.0,0.00011795]
[1765131286081,0.17023107,91374.0,91373.0,0.00011795]